bitfinex/quotes_BTCUSD_20260310
["timestamp","ask_amount","ask_price","bid_price","bid_amount"]
[1773168347547,0.00148,70095.0,70060.0,0.07156734]
[1773168347926,0.00148,70095.0,70060.0,0.0002]
[1773168349053,0.00348,70095.0,70060.0,0.0002]
[1773168349263,0.03,70093.0,70061.0,1e-08]
[1773168349513,0.03,70093.0,70051.0,0.1947192]
[1773168349514,0.00023,70075.0,70035.0,0.02825177]
[1773168349749,0.00023,70075.0,70021.0,0.1947192]
[1773168349750,0.00562,70068.0,70026.0,0.07140205]
[1773168349941,0.00562,70068.0,70027.0,0.00148]
[1773168350139,0.00562,70068.0,70028.0,0.00148]
[1773168350140,0.00148,70067.0,70028.0,0.00148]
[1773168350447,0.00148,70067.0,70029.0,0.00148]
[1773168350652,0.00185535,70067.0,70029.0,0.02973177]
[1773168351382,0.03,70065.0,70031.0,0.02824039]
[1773168351781,0.00148,70064.0,70031.0,0.02824039]
[1773168352479,0.00148,70064.0,70030.0,0.07139797]
[1773168352881,0.00148,70064.0,70025.0,0.07163208]
[1773168353286,0.03,70062.0,70026.0,0.02824039]
[1773168353526,0.00148,70061.0,70027.0,0.00148]
[1773168353917,0.03,70059.0,70025.0,0.00023]
[1773168354295,0.03,70059.0,70007.0,0.07142126]
[1773168354296,0.03,70049.0,70009.0,0.18122607]
[1773168354493,0.03,70049.0,70013.0,0.00148]
[1773168354494,0.00148,70048.0,70013.0,0.00148]
[1773168354754,0.00148,70048.0,70012.0,0.00562]
[1773168355027,0.03,70039.0,70012.0,0.00562]
[1773168355180,0.00148,70038.0,70012.0,0.00562]
[1773168355379,0.03,70036.0,70012.0,0.00562]
[1773168355780,0.03,70036.0,70012.0,0.0770358]
[1773168355975,0.03,70036.0,70012.0,0.00562]
[1773168356242,0.03,70036.0,69998.0,0.00048]
[1773168356399,0.03,70036.0,70000.0,0.07177028]
[1773168356737,0.03,70036.0,70001.0,0.05349621]
[1773168356935,0.03,70036.0,70000.0,0.00034252]
[1773168357115,0.07139083,70037.0,70000.0,0.00034252]
[1773168357116,0.03,70034.0,70000.0,0.00034252]
[1773168357322,0.03,70032.0,70000.0,0.00034252]
[1773168357574,0.00148,70031.0,70000.0,0.00034252]
[1773168357941,0.00148,70031.0,70000.0,0.12528698]
[1773168358136,0.00148,70031.0,70001.0,0.05351618]
[1773168358764,0.00248,70031.0,70001.0,0.05351618]
[1773168358998,0.001,70031.0,70001.0,0.05351618]
[1773168359172,0.031,70031.0,70001.0,0.05351618]
[1773168359466,0.07848854,70040.0,70003.0,0.05364248]
[1773168359814,0.07138777,70043.0,70013.0,0.05364248]
[1773168359989,0.07138777,70043.0,70015.0,0.05364248]
[1773168360188,0.03,70042.0,70015.0,0.05364248]
[1773168360588,0.03,70042.0,70015.0,0.05512248]
[1773168361182,0.03,70049.0,70015.0,0.05512248]
[1773168361374,0.03,70047.0,70017.0,0.05357457]
[1773168361573,0.03,70047.0,70019.0,0.05357457]
[1773168361776,0.03,70047.0,70020.0,0.00148]
[1773168361956,0.03,70047.0,70019.0,0.05505457]
[1773168363631,0.03,70045.0,70020.0,0.07140816]
[1773168363830,0.03,70045.0,70021.0,0.0535764]
[1773168364738,0.00148,70044.0,70021.0,0.0535764]
[1773168364966,0.00148,70044.0,70021.0,0.05368892]
[1773168365270,0.03,70049.0,70023.0,0.0535764]
[1773168365566,0.03,70049.0,70021.0,0.00011252]
[1773168365567,0.03,70047.0,70021.0,0.00011252]
[1773168365791,0.03,70047.0,70023.0,8.06e-05]
[1773168367663,0.03,70045.0,70024.0,0.05371868]
[1773168367965,0.03,70045.0,70023.0,8.06e-05]
[1773168368393,0.00148,70044.0,70023.0,8.06e-05]
[1773168368622,0.00148,70044.0,70025.0,0.05371868]
[1773168369357,0.00148,70044.0,70023.0,8.06e-05]
[1773168369594,0.03,70042.0,70024.0,0.07140409]
[1773168369796,0.0713791,70049.0,70026.0,0.0538802]
[1773168370005,0.0713791,70049.0,70028.0,0.0538802]
[1773168370220,0.00148,70048.0,70029.0,0.00148]
[1773168370719,0.03148,70048.0,70029.0,0.0539608]
[1773168370934,0.03148,70048.0,70030.0,0.00148]
[1773168371151,0.03148,70048.0,70031.0,0.0538802]
[1773168371740,0.03,70046.0,70032.0,0.07139593]
[1773168371939,0.03,70046.0,70033.0,0.05393143]
[1773168372142,0.00023,70050.0,70033.0,0.05393143]
[1773168372351,0.07160773,70050.0,70033.0,0.05393143]
[1773168372731,0.03,70049.0,70034.0,0.00148]
[1773168373142,0.03,70049.0,70034.0,0.05541143]
[1773168373345,0.03,70049.0,70033.0,8.06e-05]
[1773168373726,0.03,70047.0,70035.0,0.07139287]
[1773168374151,0.07285554,70053.0,70036.0,0.05696966]
[1773168374405,0.07136841,70059.0,70038.0,0.05696966]
[1773168374573,0.00148,70061.0,70041.0,0.05696966]
[1773168375070,0.00148,70063.0,70043.0,0.05696966]
[1773168375269,0.00148,70063.0,70044.0,0.00148]
[1773168375487,0.00148,70063.0,70044.0,0.05861717]
[1773168375769,0.00562,70068.0,70045.0,0.07138268]
[1773168375979,0.00562,70068.0,70046.0,0.05713717]
[1773168375980,0.07697967,70068.0,70046.0,0.05713717]
[1773168376333,0.07735509,70068.0,70046.0,0.05713717]
[1773168376534,0.00148,70071.0,70046.0,0.05713717]
[1773168376731,0.00157109,70071.0,70046.0,0.05713717]
[1773168377049,0.00157109,70071.0,70047.0,0.00148]
[1773168377251,0.00157109,70071.0,70048.0,0.05713717]
[1773168377454,0.00157109,70071.0,70049.0,0.00148]
[1773168377647,0.00157109,70071.0,70048.0,0.05713717]
[1773168377851,0.23451483,70070.0,70045.0,0.001]
[1773168378067,0.07135721,70070.0,70045.0,0.001]
[1773168378245,0.07135721,70070.0,70042.0,0.07138573]
[1773168378569,0.00148,70069.0,70043.0,0.0574592]
[1773168378882,0.07135721,70070.0,70043.0,0.0574592]
[1773168378883,0.00148,70068.0,70043.0,0.0574592]
[1773168379183,0.07135721,70070.0,70043.0,0.0574592]
[1773168379388,0.07135721,70070.0,70044.0,0.00148]
[1773168379389,0.00148,70069.0,70044.0,0.00148]
[1773168379606,0.00148,70069.0,70045.0,0.05958543]
[1773168379963,0.07135925,70068.0,70046.0,0.07138166]
[1773168380560,0.07135925,70068.0,70047.0,0.05810543]
[1773168381525,0.07133899,70088.0,70051.0,0.16700132]
[1773168381690,0.19481422,70093.0,70059.0,0.05839298]
[1773168381992,0.10135685,70083.0,70062.0,0.05839298]
[1773168383213,0.10135685,70083.0,70057.0,0.0728503]
[1773168383411,0.10135685,70083.0,70057.0,0.0713703]
[1773168383825,0.16315762,70080.0,70036.0,0.07139175]
[1773168384020,0.16315762,70080.0,70052.0,0.07137539]
[1773168384614,0.16315762,70080.0,70059.0,0.001]
[1773168384820,0.16315762,70080.0,70052.0,0.07137539]
[1773168384978,0.10135685,70083.0,70054.0,0.16700132]
[1773168385166,0.10135685,70083.0,70055.0,0.05852905]
[1773168385367,0.16315762,70080.0,70044.0,0.07138308]
[1773168385567,0.16353345,70080.0,70051.0,0.07137554]
[1773168385768,0.03,70078.0,70051.0,0.07137554]
[1773168385988,0.00148,70077.0,70054.0,0.02940518]
[1773168386238,0.00148,70077.0,70056.0,0.02940518]
[1773168386620,0.00148,70076.0,70056.0,0.02940518]
[1773168387000,0.00148,70076.0,70052.0,0.00148]
[1773168387203,0.00148,70076.0,70051.0,0.07137554]
[1773168387422,0.00148,70076.0,70052.0,0.04788698]
[1773168387678,0.00148,70076.0,70053.0,0.16700132]
[1773168387976,0.03,70074.0,70056.0,0.04788698]
[1773168388966,0.03,70074.0,70057.0,0.00148]
[1773168389161,0.03,70074.0,70056.0,0.04788698]
[1773168389758,0.03,70074.0,70055.0,0.07137249]
[1773168390324,0.03,70072.0,70055.0,0.07137249]
[1773168390528,0.03,70072.0,70055.0,0.11923276]
[1773168390948,0.03,70072.0,70050.0,0.07160715]
[1773168391476,0.03,70070.0,70050.0,0.07160715]
[1773168391677,0.03,70070.0,70052.0,0.16700132]
[1773168391822,0.00148,70069.0,70053.0,0.02223459]
[1773168392026,0.00148,70072.0,70053.0,0.02223459]
[1773168392482,0.07135619,70071.0,70054.0,0.07285351]
[1773168392774,0.07135619,70071.0,70054.0,0.0950881]
[1773168392775,0.10135619,70071.0,70054.0,0.0950881]
[1773168393017,0.07135415,70076.0,70054.0,0.0950881]
[1773168393018,0.1013574,70083.0,70061.0,0.02223459]
[1773168393142,0.02125595,70098.0,70061.0,0.02223459]
[1773168393143,0.07132657,70102.0,70072.0,0.16700132]
[1773168393343,0.07132207,70105.0,70080.0,0.16315762]
[1773168393543,0.07280091,70106.0,70081.0,0.02371459]
[1773168393809,0.07153692,70110.0,70081.0,0.02371459]
[1773168393810,0.07131854,70108.0,70081.0,0.02371459]
[1773168394007,0.07131853,70109.0,70081.0,0.02371459]
[1773168394254,0.00022001,70110.0,70090.0,0.16315762]
[1773168394478,0.00022001,70110.0,70092.0,0.07133481]
[1773168394693,0.07153653,70110.0,70092.0,0.07133481]
[1773168394873,0.03,70109.0,70092.0,0.07133481]
[1773168395339,0.03,70109.0,70100.0,0.00048]
[1773168395551,0.03159272,70109.0,70092.0,0.07133481]
[1773168395765,0.03159272,70109.0,70093.0,0.00148]
[1773168396205,0.03159272,70109.0,70092.0,0.07233481]
[1773168396206,0.18471309,70108.0,70082.0,0.07134499]
[1773168396421,0.03,70101.0,70068.0,0.00562]
[1773168396631,0.02125595,70096.0,70075.0,0.07158182]
[1773168396847,0.03,70095.0,70075.0,0.07158182]
[1773168397064,0.00148,70094.0,70075.0,0.07158209]
[1773168397712,0.03,70094.0,70075.0,0.07158209]
[1773168398274,0.03,70094.0,70075.0,0.07306209]
[1773168398477,0.03,70092.0,70076.0,0.00148]
[1773168398677,0.03,70092.0,70075.0,0.07306209]
[1773168399460,0.03,70092.0,70075.0,0.00023]
[1773168399690,0.03,70090.0,70068.0,0.07697839]
[1773168399929,0.03,70088.0,70068.0,0.07697839]
[1773168400161,0.00148,70087.0,70068.0,0.07697839]
[1773168400390,0.03,70085.0,70068.0,0.07697839]
[1773168400753,0.03,70085.0,70070.0,0.16315762]
[1773168400958,0.0713357,70092.0,70068.0,0.07697839]
[1773168401234,0.00148,70089.0,70068.0,0.07697839]
[1773168401443,0.02125595,70088.0,70068.0,0.00599583]
[1773168401641,0.00148,70089.0,70068.0,0.00599583]
[1773168401642,0.031,70085.0,70068.0,0.00599583]
[1773168401805,0.03,70085.0,70068.0,0.07735481]
[1773168402858,0.03,70083.0,70068.0,0.07735481]
[1773168403071,0.07133429,70093.0,70070.0,0.16315762]
[1773168403421,0.07133429,70093.0,70071.0,0.02223459]
[1773168403728,0.11925443,70094.0,70070.0,0.16315762]
[1773168403729,0.11925443,70094.0,70072.0,0.02371459]
[1773168403902,0.03,70093.0,70072.0,0.02371459]
[1773168404100,0.00023,70100.0,70080.0,0.16315762]
[1773168404101,0.07155724,70100.0,70080.0,0.16315762]
[1773168404302,0.02147596,70113.0,70075.0,0.00023]
[1773168404303,0.07153904,70108.0,70075.0,0.00023]
[1773168404503,0.07153904,70108.0,70081.0,0.02223459]
[1773168404708,0.07153904,70108.0,70082.0,0.00148]
[1773168404903,0.07153904,70108.0,70081.0,0.02223459]
[1773168405114,0.03,70105.0,70082.0,0.07134499]
[1773168405304,0.00148,70104.0,70082.0,0.07134499]
[1773168405507,0.03,70102.0,70076.0,0.07135015]
[1773168405827,0.03,70102.0,70075.0,0.0715811]
[1773168405828,0.05125595,70094.0,70075.0,0.00023]
[1773168405982,0.03,70094.0,70075.0,0.07158162]
[1773168406180,0.00148,70093.0,70075.0,0.07158162]
[1773168406380,0.03,70091.0,70067.0,0.0002]
[1773168406586,0.05335864,70089.0,70069.0,0.00148]
[1773168406823,0.05335864,70089.0,70068.0,0.07735492]
[1773168407135,0.03,70087.0,70068.0,0.07735466]
[1773168407341,0.00148,70086.0,70069.0,0.00148]
[1773168407539,0.03,70087.0,70069.0,0.00148]
[1773168407885,0.03,70087.0,70070.0,0.16315762]
[1773168408093,0.03,70093.0,70069.0,0.00148]
[1773168408550,0.00022001,70108.0,70071.0,0.02384834]
[1773168408750,0.0715575,70100.0,70071.0,0.02384834]
[1773168409179,0.03,70097.0,70072.0,0.07135517]
[1773168409874,0.03,70097.0,70073.0,0.00148]
[1773168410078,0.03,70097.0,70074.0,0.00148]
[1773168410443,0.03,70097.0,70072.0,0.07135517]
[1773168410645,0.03,70097.0,70073.0,0.00148]
[1773168411172,0.03,70095.0,70074.0,0.07135314]
[1773168412039,0.03,70095.0,70075.0,0.00148]
[1773168412240,0.03,70095.0,70073.0,0.07135314]
[1773168412493,0.00148,70094.0,70074.0,0.00148]
[1773168412816,0.03,70090.0,70074.0,0.00148]
[1773168412994,0.03,70090.0,70075.0,0.00148]
[1773168413217,0.03,70088.0,70076.0,0.0713511]
[1773168413548,0.03148,70088.0,70071.0,0.0002]
[1773168413753,0.03148,70088.0,70053.0,0.07137429]
[1773168413754,0.03,70086.0,70070.0,0.00148]
[1773168413954,0.03,70084.0,70070.0,0.00148]
[1773168414585,0.00148,70088.0,70047.0,0.07137862]
[1773168414586,0.16315762,70080.0,70047.0,0.07137862]
[1773168414787,0.16315762,70080.0,70040.0,0.00562]
[1773168414788,0.03,70073.0,70051.0,0.00148]
[1773168414988,0.053818,70073.0,70051.0,0.00148]
[1773168415186,0.03,70071.0,70052.0,0.07137554]
[1773168417313,0.03,70069.0,70052.0,0.07137554]
[1773168418338,0.03,70070.0,70052.0,0.07137554]
[1773168418701,0.03,70070.0,70052.0,0.07157554]
[1773168419719,0.07135212,70075.0,70053.0,0.14231216]
[1773168420011,0.07282805,70079.0,70054.0,0.02553752]
[1773168420466,0.07134805,70079.0,70054.0,0.02553752]
[1773168420676,0.00148,70078.0,70054.0,0.02553752]
[1773168420874,0.03148,70078.0,70054.0,0.02553752]
[1773168421076,0.07172318,70080.0,70058.0,0.02553752]
[1773168421357,0.07172318,70080.0,70059.0,0.00148]
[1773168421805,0.00037583,70080.0,70061.0,0.02553752]
[1773168422063,0.03,70079.0,70060.0,0.07136739]
[1773168423656,0.00037583,70080.0,70060.0,0.23436251]
[1773168423913,0.07134096,70086.0,70063.0,0.02553752]
[1773168424140,0.023818,70099.0,70063.0,0.02553752]
[1773168424141,0.00171,70100.0,70071.0,0.02553752]
[1773168424344,0.07695117,70096.0,70073.0,0.02553752]
[1773168424753,0.03,70095.0,70073.0,0.02553752]
[1773168425228,0.03,70095.0,70072.0,0.00148]
[1773168425445,0.03,70095.0,70074.0,0.00148]
[1773168425629,0.03037583,70095.0,70080.0,0.16299512]
[1773168425829,0.0713226,70104.0,70081.0,0.07282601]
[1773168426034,0.00022001,70108.0,70081.0,0.07282601]
[1773168426235,0.07153889,70108.0,70090.0,0.16299512]
[1773168426394,0.00022001,70108.0,70091.0,0.00148]
[1773168426606,0.00022001,70110.0,70091.0,0.00148]
[1773168426961,0.03022001,70110.0,70091.0,0.00148]
[1773168427694,0.03022001,70110.0,70092.0,0.07133481]
[1773168427939,0.03,70109.0,70092.0,0.07133481]
[1773168428243,0.00022001,70121.0,70099.0,0.18241257]
[1773168428457,0.07714249,70124.0,70101.0,0.01944106]
[1773168428744,0.00584001,70124.0,70101.0,0.01944106]
[1773168428944,0.00022001,70133.0,70111.0,0.13019271]
[1773168429125,0.0578723,70134.0,70112.0,0.00148]
[1773168429297,0.0717804,70143.0,70112.0,0.00148]
[1773168429298,0.000497,70143.0,70112.0,0.02095254]
[1773168429499,0.000497,70143.0,70130.0,0.16299512]
[1773168429500,1e-08,70143.0,70130.0,0.16299512]
[1773168429746,1e-08,70143.0,70121.0,0.07130531]
[1773168429955,1e-08,70143.0,70122.0,0.00148]
[1773168429956,0.03,70141.0,70122.0,0.00148]
[1773168430099,0.03,70139.0,70123.0,0.00148]
[1773168430304,0.0001127,70141.0,70123.0,0.00148]
[1773168430545,1e-08,70143.0,70123.0,0.00148]
[1773168430769,1e-08,70143.0,70130.0,0.16299512]
[1773168431050,0.00023,70150.0,70131.0,0.00148]
[1773168431270,0.10689452,70152.0,70131.0,0.00148]
[1773168431612,0.023818,70167.0,70131.0,0.00148]
[1773168431613,0.08393996,70169.0,70141.0,0.14231216]
[1773168431789,0.08393996,70169.0,70150.0,0.07127583]
[1773168431931,0.08393996,70169.0,70142.0,0.07128396]
[1773168432138,0.08393996,70169.0,70143.0,0.00148]
[1773168432335,0.08393996,70169.0,70142.0,0.07128396]
[1773168432336,0.03,70166.0,70144.0,0.00148]
[1773168432590,0.03,70164.0,70144.0,0.00148]
[1773168433036,0.03011264,70164.0,70144.0,0.00148]
[1773168433176,0.08393996,70169.0,70144.0,0.00148]
[1773168433376,0.03,70167.0,70141.0,0.07128396]
[1773168433589,0.053818,70167.0,70142.0,0.00148]
[1773168433782,0.03,70165.0,70142.0,0.00148]
[1773168434113,0.03,70165.0,70141.0,0.07128396]
[1773168434114,0.03,70163.0,70143.0,0.00148]
[1773168434272,0.07126161,70164.0,70144.0,0.00148]
[1773168434273,0.03,70159.0,70144.0,0.00148]
[1773168434474,0.07126161,70164.0,70132.0,0.07129209]
[1773168434475,0.03,70155.0,70132.0,0.0712932]
[1773168434681,0.03,70153.0,70133.0,0.00148]
[1773168434886,0.023818,70163.0,70140.0,0.16299512]
[1773168435084,0.023818,70163.0,70141.0,0.00148]
[1773168435302,0.07126107,70165.0,70142.0,0.00148]
[1773168435507,0.07126107,70165.0,70140.0,0.16299512]
[1773168435508,0.08453507,70169.0,70143.0,0.00148]
[1773168435683,0.01327816,70169.0,70150.0,0.16299512]
[1773168435991,0.00023,70175.0,70151.0,0.00148]
[1773168435992,0.07175286,70170.0,70151.0,0.00148]
[1773168436185,0.07175286,70170.0,70152.0,0.0727538]
[1773168436186,0.001,70165.0,70152.0,0.0727538]
[1773168436403,0.000497,70170.0,70152.0,0.0727538]
[1773168436668,0.03,70174.0,70160.0,0.16299512]
[1773168436905,0.07125073,70175.0,70161.0,0.00148]
[1773168437081,0.07125073,70175.0,70162.0,0.00148]
[1773168437283,0.07125073,70175.0,70152.0,0.0712738]
[1773168437771,0.07125073,70175.0,70153.0,0.00148]
[1773168437974,0.023818,70174.0,70153.0,0.00148]
[1773168438284,0.03,70172.0,70154.0,0.07127177]
[1773168439017,0.03,70172.0,70153.0,0.07275177]
[1773168439269,0.03,70172.0,70153.0,0.07127177]
[1773168439460,0.03,70172.0,70154.0,0.00148]
[1773168440215,0.03,70170.0,70155.0,0.07127075]
[1773168440431,0.03,70170.0,70151.0,0.00048]
[1773168440432,0.03,70170.0,70156.0,0.00148]
[1773168440633,0.03,70170.0,70154.0,0.001]
[1773168440862,0.03,70170.0,70155.0,0.00148]
[1773168441068,0.03,70170.0,70156.0,0.00148]
[1773168441273,0.03,70172.0,70156.0,0.00148]
[1773168441651,0.03,70172.0,70152.0,0.07127342]
[1773168441838,0.03,70172.0,70151.0,0.0717538]
[1773168441839,0.03,70170.0,70151.0,0.00048]
[1773168442031,0.03,70166.0,70134.0,0.07129108]
[1773168442230,0.03,70166.0,70127.0,0.21269824]
[1773168442231,0.03,70160.0,70130.0,0.16299512]
[1773168442454,0.06168925,70160.0,70131.0,0.00148]
[1773168442820,0.03,70160.0,70140.0,0.16299512]
[1773168443058,0.03,70160.0,70150.0,0.0002]
[1773168443259,0.03,70158.0,70149.0,0.00148]
[1773168443458,0.03,70158.0,70128.0,0.07129819]
[1773168443640,0.03,70158.0,70142.0,0.0002]
[1773168444041,0.06168925,70154.0,70139.0,0.00148]
[1773168444322,0.06168925,70154.0,70140.0,0.00148]
[1773168444525,0.06168925,70152.0,70140.0,0.00148]
[1773168444928,0.06168925,70152.0,70128.0,0.07129811]
[1773168444929,0.03,70150.0,70124.0,0.07692194]
[1773168445131,0.03,70146.0,70126.0,0.00148]
[1773168445361,0.03,70144.0,70125.0,0.07153113]
[1773168445629,0.06168925,70144.0,70127.0,0.00148]
[1773168445831,0.03,70144.0,70127.0,0.00148]
[1773168446034,0.03,70144.0,70125.0,0.07153113]
[1773168446252,0.03,70143.0,70126.0,0.00148]
[1773168446455,0.03,70141.0,70127.0,0.07129921]
[1773168447404,0.03,70141.0,70126.0,0.00011264]
[1773168447578,0.03,70141.0,70128.0,0.00148]
[1773168447883,0.03,70141.0,70129.0,0.00148]
[1773168448213,0.03,70141.0,70126.0,0.00011264]
[1773168448482,0.07128353,70144.0,70126.0,0.00011264]
[1773168448483,0.03,70135.0,70127.0,0.00148]
[1773168448780,0.03,70135.0,70126.0,0.00011264]
[1773168448980,0.03,70135.0,70127.0,0.00148]
[1773168449343,0.03,70135.0,70128.0,0.00148]
[1773168449535,0.03,70135.0,70128.0,0.0015927]
[1773168449884,0.03,70135.0,70127.0,0.00148]
[1773168450085,0.03,70135.0,70120.0,0.071306]
[1773168450086,0.03168925,70132.0,70106.0,0.07132023]
[1773168450313,0.03,70127.0,70103.0,0.07176727]
[1773168450526,0.07130531,70121.0,70104.0,0.00148]
[1773168450641,0.07153134,70125.0,70110.0,0.16299512]
[1773168450844,0.06957134,70125.0,70111.0,0.00148]
[1773168451067,0.06957134,70125.0,70107.0,0.00148]
[1773168451068,0.03168925,70124.0,70107.0,0.00148]
[1773168451901,0.06957134,70125.0,70101.0,0.07132362]
[1773168451902,0.03,70119.0,70102.0,0.00148]
[1773168452400,0.03168925,70124.0,70100.0,0.00023]
[1773168452695,0.03168925,70122.0,70104.0,0.0713226]
[1773168452849,0.06168925,70121.0,70104.0,0.0713226]
[1773168453049,0.06168925,70121.0,70105.0,0.00148]
[1773168454681,0.03,70119.0,70106.0,0.07132057]
[1773168454877,0.03,70119.0,70090.0,0.19391011]
[1773168454878,0.03,70117.0,70097.0,0.07132907]
[1773168455102,0.06168925,70113.0,70101.0,0.00148]
[1773168455302,0.06168925,70113.0,70095.0,0.07133148]
[1773168455303,0.06168925,70113.0,70100.0,0.00071]
[1773168455511,0.03,70111.0,70081.0,0.07134601]
[1773168455713,0.07130633,70120.0,70081.0,0.07134601]
[1773168455714,0.03,70109.0,70082.0,0.00148]
[1773168456314,0.03,70109.0,70082.0,0.00185583]
[1773168456515,0.07130633,70120.0,70090.0,0.19391011]
[1773168456715,0.03,70119.0,70091.0,0.07281583]
[1773168457696,0.03,70119.0,70105.0,0.0002]
[1773168457904,0.03,70118.0,70106.0,0.00148]
[1773168458760,0.03,70118.0,70107.0,0.07131955]
[1773168458962,0.07130531,70123.0,70108.0,0.00148]
[1773168458963,0.03,70117.0,70108.0,0.00148]
[1773168459174,0.03011249,70117.0,70108.0,0.00148]
[1773168459419,0.03011249,70117.0,70107.0,0.07131955]
[1773168459729,0.03011249,70117.0,70108.0,0.00148]
[1773168459934,0.00562,70124.0,70108.0,0.00148]
[1773168459935,0.00562,70124.0,70108.0,0.03239499]
[1773168460136,0.00562,70124.0,70108.0,0.03250748]
[1773168460330,0.07692247,70124.0,70108.0,0.00159249]
[1773168460533,0.07692247,70124.0,70097.0,0.07152964]
[1773168460534,0.03168925,70123.0,70097.0,0.07152964]
[1773168460757,0.03180187,70123.0,70098.0,0.00148]
[1773168460961,0.03,70118.0,70098.0,0.00148]
[1773168461168,0.07130429,70122.0,70097.0,0.0002]
[1773168461169,0.03,70112.0,70097.0,0.0002]
[1773168461364,0.03,70110.0,70098.0,0.00148]
[1773168461570,0.03,70110.0,70077.0,0.07134992]
[1773168461571,0.03,70104.0,70077.0,0.07134992]
[1773168461785,0.03,70100.0,70078.0,0.07282805]
[1773168461980,0.06168925,70098.0,70078.0,0.07282805]
[1773168462156,0.03151161,70098.0,70078.0,0.07282805]
[1773168462762,0.00148,70103.0,70078.0,0.07282805]
[1773168462960,0.00148,70111.0,70082.0,0.11316801]
[1773168463164,0.06316925,70112.0,70082.0,0.11316801]
[1773168464610,0.03,70110.0,70082.0,0.11316801]
[1773168464815,0.03168925,70107.0,70082.0,0.11316801]
[1773168464976,0.03,70104.0,70083.0,0.07134397]
[1773168465591,0.03,70104.0,70084.0,0.00148]
[1773168465785,0.03,70104.0,70085.0,0.05531647]
[1773168466314,0.03,70103.0,70085.0,0.05531647]
[1773168467292,0.03,70101.0,70086.0,0.12665739]
[1773168468002,0.03,70101.0,70088.0,0.05531597]
[1773168468311,0.03,70100.0,70088.0,0.05531597]
[1773168469316,0.10132464,70102.0,70089.0,0.12665384]
[1773168469595,0.10132464,70102.0,70090.0,0.05531597]
[1773168470015,0.0713224,70105.0,70090.0,0.05531597]
[1773168470227,0.62339103,70145.0,70091.0,0.05531494]
[1773168470228,0.07130328,70123.0,70091.0,0.05531494]
[1773168470481,0.03,70122.0,70098.0,0.05531494]
[1773168470673,0.03,70122.0,70089.0,0.07133787]
[1773168470674,0.07692296,70124.0,70101.0,0.05531494]
[1773168470675,0.00562,70124.0,70101.0,0.05531494]
[1773168470888,0.00562,70124.0,70102.0,0.00148]
[1773168470889,0.07692262,70124.0,70102.0,0.00148]
[1773168471093,0.07692262,70124.0,70103.0,0.05531494]
[1773168471297,0.03,70123.0,70104.0,0.00148]
[1773168471512,0.03,70123.0,70105.0,0.00148]
[1773168471911,0.00022001,70121.0,70105.0,0.00148]
[1773168472113,0.00022001,70121.0,70095.0,0.05531494]
[1773168472317,0.00022001,70121.0,70096.0,0.00148]
[1773168472522,0.00022001,70121.0,70089.0,0.0002]
[1773168472800,0.00022001,70121.0,70090.0,0.00148]
[1773168473215,0.00022001,70121.0,70091.0,0.0557898]
[1773168473614,0.03,70119.0,70092.0,0.07133481]
[1773168474170,0.03,70102.0,70093.0,0.00148]
[1773168474384,0.07252634,70121.0,70094.0,0.0557898]
[1773168474385,0.00022001,70121.0,70094.0,0.0557898]
[1773168474588,0.07152557,70121.0,70101.0,0.0557898]
[1773168474806,0.07152557,70121.0,70103.0,0.0557898]
[1773168474982,0.07152557,70121.0,70104.0,0.00148]
[1773168475185,0.03,70120.0,70103.0,0.0557898]
[1773168475543,0.03,70120.0,70104.0,0.00148]
[1773168475686,0.03,70118.0,70105.0,0.07132158]
[1773168475890,0.03,70118.0,70106.0,0.00148]
[1773168476074,0.03,70118.0,70107.0,0.00148]
[1773168476279,0.03,70118.0,70108.0,0.00148]
[1773168477050,0.03,70118.0,70107.0,0.00148]
[1773168477253,0.031,70118.0,70107.0,0.00148]
[1773168477964,0.03,70116.0,70106.0,0.00148]
[1773168479031,0.03,70119.0,70106.0,0.00148]
[1773168479449,0.03,70119.0,70107.0,0.00148]
[1773168479755,0.03,70117.0,70107.0,0.07279883]
[1773168480158,0.03,70117.0,70107.0,0.00148]
[1773168480366,0.03,70117.0,70107.0,0.07279929]
[1773168480776,0.11026991,70150.0,70108.0,0.04778715]
[1773168480971,0.00425262,70124.0,70108.0,0.04778715]
[1773168481169,0.00425262,70124.0,70108.0,0.04789977]
[1773168481516,0.00023,70150.0,70108.0,0.04789977]
[1773168481720,0.07151029,70136.0,70111.0,0.04778715]
[1773168481852,0.07151029,70136.0,70113.0,0.04778715]
[1773168482244,0.03,70135.0,70113.0,0.04778715]
[1773168482445,0.07128255,70144.0,70113.0,0.04778715]
[1773168482446,0.00562,70152.0,70120.0,0.16265953]
[1773168482647,0.00562,70152.0,70131.0,0.04082483]
[1773168482854,0.07127548,70151.0,70132.0,0.04578599]
[1773168483051,0.00562,70152.0,70133.0,0.04578599]
[1773168483308,0.03,70151.0,70134.0,0.04578599]
[1773168483509,0.2100812,70167.0,70142.0,0.04430599]
[1773168483711,0.2100812,70167.0,70144.0,0.04430599]
[1773168484020,0.2100812,70167.0,70145.0,0.07128091]
[1773168484021,0.21045689,70167.0,70145.0,0.07128091]
[1773168484216,0.03,70166.0,70146.0,0.00148]
[1773168484450,0.03,70166.0,70147.0,0.00148]
[1773168485461,0.03,70166.0,70131.0,0.07129311]
[1773168485781,0.03,70166.0,70134.0,0.001]
[1773168486066,0.0712606,70165.0,70134.0,0.04430599]
[1773168486227,0.03,70166.0,70140.0,0.16265953]
[1773168486228,0.03,70164.0,70140.0,0.16265953]
[1773168486437,0.03,70164.0,70136.0,0.04430599]
[1773168486828,0.03,70164.0,70141.0,0.04430599]
[1773168487028,0.00037569,70167.0,70151.0,0.04430599]
[1773168487272,0.00037569,70167.0,70153.0,0.04430599]
[1773168487879,0.03,70166.0,70140.0,0.16265953]
[1773168488088,0.03,70166.0,70141.0,0.04578599]
[1773168488311,0.03,70166.0,70142.0,0.07128396]
[1773168488312,0.03,70162.0,70142.0,0.07128396]
[1773168488523,0.03,70162.0,70142.0,0.00148]